Cogmind - Beta 16 @@@ ROGUE MODE // 2025.11.28 @ 16:42:18 Player: laeb2 Result: Destroyed by P-80 Master with Gamma Rifle Performance ------------- Evolutions (8) 4000 Regions Visited (12) 2400 Robots Destroyed (172) 860 Value Destroyed (9080) 9080 Prototype IDs (23) 460 Alien Tech Used (0) 0 Bonus (5326) 5326 TOTAL SCORE: 22126 Bonus ------- High Alert Combat Kills 662 Follower Combat Kills 879 Entered DSFs 500 Registered with UFD 300 Met Optimus in HQ 500 Met R17 at Cetus 500 Met R17 at Research 2000 Friendly Fire -15 Cogmind --------- Core Integrity 0/1450 Matter 275/300 Energy 74/100 System Corruption 30% Temperature Cool (0) Movement Core (700) Ox13 Location -2/Research Parts ------- > --- POWER (2) -------- (None) > --- PROPULSION (6) --- (None) > --- UTILITY (11) ----- Improved Coolant Injector High-capacity Storage Unit Advanced Target Analyzer Advanced Target Analyzer Advanced Target Analyzer Advanced Target Analyzer Advanced Target Analyzer > --- WEAPON (4) ------- (None) > --- INVENTORY (20) --- Advanced Heat Sink Medium Matter Pod (100) Enhanced Quantum Rifle Vortex Trap Peak State ------------ > --- POWER ------------ Antimatter Reactor Light Particle Reactor > --- PROPULSION ------- Centrium Heavy Treads Centrium Heavy Treads Centrium Heavy Treads > --- UTILITY ---------- Advanced Heat Sink High-capacity Storage Unit Advanced Target Analyzer Advanced Target Analyzer Advanced Target Analyzer Advanced Target Analyzer Advanced Target Analyzer Advanced Phase Shifter Centrium Medium Armor Plating Centrium Medium Armor Plating Long-range Tractor Beam > --- WEAPON ----------- Hypervelocity Coil Gun Advanced KE Penetrator Advanced KE Penetrator Advanced KE Penetrator > --- INVENTORY -------- Advanced Heavy Siege Treads Advanced Heat Sink Advanced Heat Sink Improved Coolant Injector Medium Matter Pod Advanced Target Analyzer Advanced Variable Charge Gun Advanced Variable Charge Gun Advanced Variable Charge Gun Enhanced Quantum Rifle KE Penetrator KE Penetrator Bore Cannon Bore Cannon Linear Accelerator Enhanced Hardcell Cannon Enhanced Hardcell Cannon Subdweller Shrapnel Launcher Vortex Trap [Rating: 185] Favorites ----------- Power Neutrino Core Engine Ion Engine Power Core Neutrino Core Reactor Light Particle Reactor Propulsion Centrium Heavy Treads Treads Centrium Heavy Treads Leg Biometal Leg Wheel Compact Wheel Flight Unit Field Propulsion Drive Utility Advanced Heat Sink Device Advanced Heat Sink Storage Large Storage Unit Processor Advanced Target Analyzer Protection Centrium Medium Armor Plating Weapon Heavy Dispersion Rifle Energy Gun Heavy Dispersion Rifle Energy Cannon Improved EM Pulse Cannon Ballistic Gun Improved Assault Rifle Ballistic Cannon Enhanced Hardcell Cannon Launcher Grenade Launcher Build | -11 -10 -10 -7 -5 -5 -5 -5 -4 -4 -4 -3 -2 ------- Run | Yrd Mat Sub Scr Fac Was Fac DSF Fac Ext Cet Res Res Slots Evolved 16 | . . . . 10 . . . 2 . . 2 2 Power 1 | . . . . 1 . . . . . . . . Propulsion 4 | . . . . 2 . . . . . . 2 . Utility 9 | . . . . 6 . . . 1 . . . 2 Weapon 2 | . . . . 1 . . . 1 . . . . Parts Attached 133 | 7 4 2 3 26 9 . 6 4 8 14 7 43 Power 11 | 1 . . . 2 1 . 2 . 1 . 3 1 Engine 3 | 1 . . . 2 . . . . . . . . Core 3 | . . . . . 1 . 2 . . . . . Reactor 5 | . . . . . . . . . 1 . 3 1 Propulsion 29 | 2 . 1 1 10 4 . 1 . 1 3 1 5 Treads 15 | 2 . 1 . 2 3 . 1 . 1 3 1 1 Leg 3 | . . . . . . . . . . . . 3 Wheel 6 | . . . 1 3 1 . . . . . . 1 Hover . | . . . . . . . . . . . . . Flight 5 | . . . . 5 . . . . . . . . Utility 52 | 2 1 . 1 8 3 . 1 3 5 6 3 19 Device 29 | 1 . . . 5 1 . 1 3 4 5 2 7 Storage 3 | 1 1 . . . . . . . . . . 1 Processor 11 | . . . 1 1 . . . . . . . 9 Hackware . | . . . . . . . . . . . . . Protection 9 | . . . . 2 2 . . . 1 1 1 2 Artifact . | . . . . . . . . . . . . . Weapon 41 | 2 3 1 1 6 1 . 2 1 1 5 . 18 Energy Gun 12 | . . . . 3 . . 2 1 1 2 . 3 Energy Cannon 1 | . . . . 1 . . . . . . . . Ballistic Gun 19 | 2 3 . . 1 1 . . . . 3 . 9 Ballistic Cannon 5 | . . . . . . . . . . . . 5 Launcher 4 | . . 1 1 1 . . . . . . . 1 Special Weapon . | . . . . . . . . . . . . . Impact Weapon . | . . . . . . . . . . . . . Slashing Weapon . | . . . . . . . . . . . . . Piercing Weapon . | . . . . . . . . . . . . . Special Melee Weapon . | . . . . . . . . . . . . . Unidentified Prototypes 9 | . 1 . . 1 1 . 1 . . 4 . 1 Parts Lost 65 | . . 1 . 6 6 . . 1 2 8 . 41 Power 5 | . . . . 2 . . . . . 1 . 2 Propulsion 15 | . . 1 . 2 3 . . . . 1 . 8 Utility 20 | . . . . 1 3 . . 1 2 2 . 11 Weapon 25 | . . . . 1 . . . . . 4 . 20 Highest Loss Streak 20 | . . 1 . 2 4 . . 1 2 6 . 20 To Critical Strikes 5 | . . . . . . . . . . 4 . 1 Average Backups 12 | 3 9 12 11 13 11 14 13 12 13 12 13 13 Power . | . . . . . . . . . . . . . Propulsion 1 | 1 2 3 1 3 . 1 1 1 1 . . . Utility 2 | . 1 2 2 3 3 5 4 2 2 2 3 2 Weapon 8 | 1 5 7 6 5 7 8 8 9 9 9 9 10 Tool/Special . | . . . . . . . . . . . . . Unused Backups 27 | . 5 4 4 3 1 . 4 . . 2 . 4 Power 1 | . 1 . . . . . . . . . . . Propulsion 5 | . 1 3 1 . . . . . . . . . Utility 8 | . 1 . . 2 1 . 2 . . . . 2 Weapon 13 | . 2 1 3 1 . . 2 . . 2 . 2 Tool/Special . | . . . . . . . . . . . . . Average Slot Usage (%) 87 | . 100 99 98 65 81 88 88 86 88 85 83 80 Engine 5 | . 14 14 14 5 5 5 . . . . . . Core 2 | . . . . . 4 5 10 10 9 5 2 . Reactor 1 | . . . . . . . . . . 2 4 7 Treads 14 | . 28 27 25 2 7 11 11 10 10 9 14 11 Wheel 1 | . . . 1 5 6 . . . . . . . Device 18 | . 14 14 7 16 22 23 23 23 26 30 28 17 Storage 7 | . 14 14 14 5 5 5 5 5 5 5 4 4 Processor 5 | . . . 6 . 5 5 5 5 5 5 2 12 Protection 4 | . . . . 4 1 11 11 10 9 4 6 9 Energy Gun 8 | . . . . 6 16 17 17 21 21 15 9 . Ballistic Gun 11 | . 28 15 26 5 . . . . . 4 9 14 Peak Build Rating 185 | 7 12 14 31 79 88 87 98 114 125 138 158 185 Average Rating 89 | 5 8 13 20 56 77 87 92 110 117 128 150 164 On Entrance 71 | . 7 12 14 31 71 87 87 98 114 125 125 158 Avg Prop Armor Cover (%) 4 | . . . . 5 3 . . . . . 7 . Naked Turns . | . . . . . . . . . . . . . Heaviest Build 115 | 14 32 32 32 68 76 76 85 90 95 92 94 115 Greatest Support 240 | 40 40 40 40 38 105 105 140 140 140 160 240 240 Greatest Overweight (x) 30 | . . . 1 4 5 . . . . . . 30 Average Overweight (x) . | . . . . 1 . . . . . . . . Largest Inventory Capacity 20 | 8 15 15 15 15 15 15 15 15 15 15 15 20 Average Capacity 15 | 7 13 15 15 15 15 15 15 15 15 15 15 17 Most Carried 20 | 5 15 15 15 15 15 15 15 15 15 15 15 20 Average Carried 14 | 3 9 14 14 14 12 15 14 14 14 14 14 15 Final Capacity 20 | 8 15 15 15 15 15 15 15 15 15 15 15 20 Final Carried 15 | 5 15 15 15 14 15 15 15 15 15 15 15 4 Class Distribution -------------------- 33% | Scavenger-Tank 32% | Mutant 26% | Tank 6% | Scavenger-Gunner Dominant Class ---------------- Mutant | -10/Materials Mutant | -10/Subcaves Mutant | -7/Scraptown Tank | -5/Factory Tank | -5/Waste Tank | -5/Factory Tank | -5/DSF Tank | -4/Factory Scavenger-Tank | -4/Extension Scavenger-Tank | -4/Cetus Scavenger-Tank | -3/Research Scavenger-Tank | -2/Research Resources | -11 -10 -10 -7 -5 -5 -5 -5 -4 -4 -4 -3 -2 ----------- Run | Yrd Mat Sub Scr Fac Was Fac DSF Fac Ext Cet Res Res Matter Collected 4909 | 294 358 176 30 570 125 . 74 87 100 270 231 2594 Remotely 1365 | . . . . . . . . . . . . 1365 Salvage Created 9975 | 127 638 209 . 1008 1215 . . 561 1252 581 486 3898 Parts 398 | 10 39 15 . 35 1 . . 24 48 23 22 181 Haulers Intercepted 4 | . 1 . . 1 . . . . 1 . . 1 Recyclers Shooed 9 | . 6 . . 2 . . . 1 . . . . Parts Field Recycled . | . . . . . . . . . . . . . Retrieved Matter . | . . . . . . . . . . . . . Parts Self-Destructed 5 | . . 5 . . . . . . . . . . Prevented . | . . . . . . . . . . . . . Parts Restored . | . . . . . . . . . . . . . Kills | -11 -10 -10 -7 -5 -5 -5 -5 -4 -4 -4 -3 -2 ------- Run | Yrd Mat Sub Scr Fac Was Fac DSF Fac Ext Cet Res Res Combat Hostiles Destroyed 131 | . 10 8 . 14 6 . . 8 19 8 7 51 Guns 106 | . 10 1 . 10 4 . . 7 18 7 7 42 Cannons 6 | . . . . . . . . . . . . 6 AOE 13 | . . 7 . 3 . . . . . . . 3 Classes Destroyed 18 | 2 5 1 . 5 1 . . 2 1 . . 1 Worker 11 | . . . . 3 . . . 2 . . . 6 Builder 6 | . 1 . . 2 . . . 1 1 . . 1 Tunneler 4 | 2 . . . . . . . . 1 . . 1 Hauler 4 | . 1 . . 1 . . . . 1 . . 1 Recycler 9 | 1 4 . . 3 . . . 1 . . . . Operator 1 | . . . . . . . . . 1 . . . Watcher 6 | . 1 . . 1 . . . 1 . 2 . 1 Swarmer 22 | . 6 3 . . . . . . 4 . . 9 Cutter 3 | . . . . . . . . . . . . 3 Grunt 33 | . 4 1 . 6 . . . 2 6 . 5 9 Duelist 1 | . . . . 1 . . . . . . . . Sentry 8 | . . . . . . . . 1 4 . . 3 Hunter 21 | . . . . 4 . . . 2 2 . 2 11 Programmer 19 | . . . . 2 . . . 1 2 . . 14 Heavy 3 | . . . . . . . . 1 . . . 2 Behemoth 3 | . . . . 1 . . . 1 1 . . . Compactor 6 | . . . . . 6 . . . . . . . Cetus Guard 8 | . . . . . . . . . . 8 . . Subdweller 4 | . . 4 . . . . . . . . . . Best Kill Streak 18 | 3 4 3 . 8 1 . . 12 10 4 3 18 Combat Bots Only 14 | . 4 3 . 4 1 . . 7 9 4 3 14 Max Kills in Single Turn 3 | 1 1 2 . 2 1 . . 2 2 1 1 3 Gunslinging 1 | . . . . 1 . . . . 1 . . 1 Exploded 2 | . . 2 . 2 . . . . . . . 2 Melee . | . . . . . . . . . . . . . Uniques/NPCs Destroyed . | . . . . . . . . . . . . . Combat | -11 -10 -10 -7 -5 -5 -5 -5 -4 -4 -4 -3 -2 -------- Run | Yrd Mat Sub Scr Fac Was Fac DSF Fac Ext Cet Res Res Hostile Shots Fired 1087 | . 55 18 . 110 4 . . 46 117 104 54 579 Missed 335 | . 19 7 . 40 . . . 11 40 29 11 178 Hits 752 | . 36 11 . 70 4 . . 35 77 75 43 401 Melee 9 | . . . . . 4 . . 1 . . . 4 Projectile 743 | . 36 11 . 70 . . . 34 77 75 43 397 Critical Strikes 61 | . . . . 4 1 . . 4 . 19 10 23 Part Disruptions 4 | . . . . . . . . . . . . 4 Damage Taken 16280 | . 325 140 . 1365 201 . . 859 1173 1843 687 9687 Core 1909 | . 40 19 . 117 . . . 65 85 117 14 1452 Absorbed by Shields . | . . . . . . . . . . . . . Reduced by Siege Mode 507 | . . . . . . . . 29 132 . 95 251 Ignored by Resistances 1011 | . . . . 72 . . . 68 269 125 181 296 Regen/Repaired (Parts) 389 | . . . . . 205 . . 184 . . . . Core Remaining (%) 87 | 100 . . 76 . . . 88 . . 76 98 . Volleys Fired 408 | 6 55 11 . 52 32 . 1 18 41 25 25 142 Largest 4 | 2 2 2 . 3 3 . 3 4 4 4 4 4 Hottest 522 | 40 46 53 . 300 300 . 300 382 382 522 250 229 Shots Fired 1152 | 12 103 17 . 138 89 . 3 63 133 95 62 437 Gun 1083 | 12 103 11 . 121 89 . 3 63 133 95 62 391 Cannon 53 | . . . . 12 . . . . . . . 41 Launcher 16 | . . 6 . 5 . . . . . . . 5 Special . | . . . . . . . . . . . . . Kinetic 649 | 12 103 11 . 49 . . . . . 19 32 423 Thermal 481 | . . . . 74 89 . 3 63 133 76 30 13 Explosive 10 | . . 6 . 3 . . . . . . . 1 Electromagnetic 12 | . . . . 12 . . . . . . . . Robot Hit Streak 39 | 5 10 12 . 19 31 . 6 23 30 16 30 39 Robot Miss Streak 8 | 1 5 1 . 7 3 . 1 3 2 3 1 8 Penetration Max 3 | . . . . . . . . . . . 1 3 Secondary Targets 21 | . 1 . . 2 . . . 1 4 4 1 8 Max Gunslinging Chain 1 | . 1 . . 1 . . . 1 1 1 1 1 Shots Hit Robots 799 | 8 57 8 . 101 85 . 3 46 92 68 44 287 Core Hits 385 | 6 27 11 . 66 30 . 1 27 39 23 24 131 Critical Kills 54 | . 1 . . . . . . 3 9 6 3 32 Critical Parts Destroyed 69 | . 1 . . . . . . 2 12 2 9 43 Critical Strikes 130 | . 2 . . . . . . 5 22 11 12 78 Destroy 127 | . 2 . . . . . . 5 22 11 12 75 Blast 3 | . . . . . . . . . . . . 3 Melee Attacks . | . . . . . . . . . . . . . Impact . | . . . . . . . . . . . . . Slashing . | . . . . . . . . . . . . . Piercing . | . . . . . . . . . . . . . Sneak Attacks . | . . . . . . . . . . . . . Combat Hostiles . | . . . . . . . . . . . . . Follow-up Attacks . | . . . . . . . . . . . . . Damage Inflicted 22993 | 92 768 438 . 3717 3361 . 107 1657 2852 2005 1070 6926 Guns 20068 | 91 758 99 . 2699 3361 . 107 1492 2852 2005 1070 5534 Cannons 1055 | . . . . 197 . . . . . . . 858 Explosions 1831 | . . 339 . 821 . . . 159 . . . 512 Melee . | . . . . . . . . . . . . . Ramming 39 | 1 10 . . . . . . 6 . . . 22 Kinetic 8760 | 91 758 99 . 723 . . . . . 97 365 6627 Thermal 13151 | . . . . 2641 3361 . 107 1492 2852 1908 705 85 Explosive 825 | . . 339 . 156 . . . 159 . . . 171 Electromagnetic 197 | . . . . 197 . . . . . . . . Impact 21 | . . . . . . . . . . . . 21 Slashing . | . . . . . . . . . . . . . Piercing . | . . . . . . . . . . . . . Highest Corruption 30 | . 4 4 . 2 2 2 2 . 3 3 . 30 Average Corruption 4 | . 4 4 . 1 2 2 2 . 2 3 . 9 Corruption Purged . | . . . . . . . . . . . . . Corruption Blocked . | . . . . . . . . . . . . . Effects 106 | . 4 11 . . 14 1 4 . 7 14 . 51 Message Errors 22 | . . 4 . . 2 . . . 1 5 . 10 Matter Fused 29 | . 3 3 . . 1 1 2 . 1 6 . 12 Heat Flow Errors 13 | . . 1 . . 4 . . . 3 . . 5 Energy Discharges 13 | . . 2 . . 3 . 1 . 1 . . 6 Data Loss (minor) 9 | . . 1 . . . . 1 . . 2 . 5 Data Loss (major) 3 | . . . . . 2 . . . . . . 1 Misfires 8 | . 1 . . . 2 . . . 1 1 . 3 Alerts 1 | . . . . . . . . . . . . 1 Misdirections 1 | . . . . . . . . . . . . 1 Weapon Failures 7 | . . . . . . . . . . . . 7 Overload Shots 14 | . . . . . . . . . . 14 . . Overflow Damage 154 | . . . . 67 . . . 66 . . . 21 Projectiles 53 | . . . . 40 . . . . . . . 13 Explosions 101 | . . . . 27 . . . 66 . . . 8 Melee . | . . . . . . . . . . . . . Knockbacks 3 | . . . . . . . . 1 . . . 2 Impact 1 | . . . . . . . . 1 . . . . Kinetic 2 | . . . . . . . . . . . . 2 Secondary . | . . . . . . . . . . . . . Self-Inflicted Damage 119 | . . . . 44 . . . 73 . . . 2 Shots 4 | . . . . 2 . . . 1 . . . 1 Rammed 7 | 1 2 . . . . . . 2 . . . 2 Targets Rammed 7 | 1 2 . . . . . . 2 . . . 2 Kicked . | . . . . . . . . . . . . . Crushed . | . . . . . . . . . . . . . Highest Temperature 286 | . 12 200 . 198 286 . 141 199 283 270 17 284 Average Temperature 111 | . 3 104 . 111 125 . 81 121 125 114 17 92 Received Heat Transfer 1297 | . 69 24 . 345 . . . 39 171 120 178 351 Siege Activations 17 | . . . . . 1 . . 1 7 . 1 7 Total Turns 1266 | . . . . . 354 . . 43 182 . 63 624 Longest Duration 354 | . . . . . 354 . . 43 86 . 63 301 Martial Activations . | . . . . . . . . . . . . . Shielding Activations . | . . . . . . . . . . . . . Robots Disrupted . | . . . . . . . . . . . . . Combat Hostiles . | . . . . . . . . . . . . . Robots Corrupted . | . . . . . . . . . . . . . Combat Hostiles . | . . . . . . . . . . . . . Parts Fried 1 | . . . . 1 . . . . . . . . Impact Corruptions . | . . . . . . . . . . . . . Robots Melted 6 | . . . . 1 2 . . 1 1 1 . . Combat Hostiles 6 | . . . . 1 2 . . 1 1 1 . . Parts Melted 27 | . . . . 10 1 . . . 9 4 3 . Heat Transferred 18512 | . . . . 3875 5575 . 175 2047 3442 2254 1033 111 Parts Sabotaged . | . . . . . . . . . . . . . Parts Stolen . | . . . . . . . . . . . . . Parts Stripped . | . . . . . . . . . . . . . Power Chain Reactions . | . . . . . . . . . . . . . Alert | -11 -10 -10 -7 -5 -5 -5 -5 -4 -4 -4 -3 -2 ------- Run | Yrd Mat Sub Scr Fac Was Fac DSF Fac Ext Cet Res Res Maximum Alert Level 3 | . . . . 2 . . 1 3 2 2 . 3 Low Security (%) 64 | 100 100 . . 38 100 100 48 62 . 19 100 76 Level 1 27 | . . . . 50 . . 51 9 86 75 . 11 Level 2 5 | . . . . 11 . . . 6 13 4 . 7 Level 3 2 | . . . . . . . . 22 . . . 4 Level 4 . | . . . . . . . . . . . . . Level 5 . | . . . . . . . . . . . . . High Security . | . . . . . . . . . . . . . Max Security . | . . . . . . . . . . . . . Sterilizations 1 | . . . . . . . 1 . . . . . Peak Influence 796 | 10 106 . . 453 153 5 399 796 656 415 117 757 Initial 368 | . . . . . 153 . 3 209 368 363 80 . Average 166 | 1 42 . . 219 14 . 219 311 349 278 46 164 Influence Increases 5543 | 15 355 90 . 689 . 5 436 1028 847 219 183 1676 Destroy 0b10 Robot/C 2800 | . 200 80 . 280 . . 180 300 440 160 140 1020 Destroy 0b10 Robot/NC 240 | 15 35 . . 50 . . 5 50 25 10 . 50 Destroy Leader 540 | . 44 10 . 64 . . 20 86 62 . 20 234 Allied During Kill 587 | . . . . . . . 205 311 71 . . . Successful Hack 83 | . . . . . . 5 . 26 46 6 . . Disable Machine 375 | . . . . 195 . . . 60 60 15 . 45 Destroy Structure 618 | . 1 . . 70 . . 26 180 68 28 8 237 Lose Combat Pursuer 300 | . 75 . . 30 . . . 15 75 . 15 90 Influence Decreases 4809 | 15 297 148 . 250 439 . 42 674 951 734 317 942 Entered New Map 1232 | . . 29 . . 286 . 2 190 385 286 54 . Time Decay 2587 | 15 297 109 . 190 113 . . 254 446 368 263 532 Lost Part 630 | . . 10 . 60 40 . . 10 20 80 . 410 Lost Ally 360 | . . . . . . . 40 220 100 . . . Squads Dispatched 33 | . 1 . . 3 . . 1 7 3 . 8 10 Investigation 7 | . . . . . . . . 2 1 . 4 . Extermination 7 | . . . . 1 . . . 1 . . . 5 Reinforcement 13 | . 1 . . 2 . . 1 2 2 . 1 4 Assault 3 | . . . . . . . . 2 . . . 1 Garrison 3 | . . . . . . . . . . . 3 . Intercept . | . . . . . . . . . . . . . Searches Triggered . | . . . . . . . . . . . . . Construction Impeded 1 | . . . . 1 . . . . . . . . Haulers Reinforced 1 | . . . . 1 . . . . . . . . Active Scanning Responses . | . . . . . . . . . . . . . Cargo Convoy Interrupts . | . . . . . . . . . . . . . Stealth | -11 -10 -10 -7 -5 -5 -5 -5 -4 -4 -4 -3 -2 --------- Run | Yrd Mat Sub Scr Fac Was Fac DSF Fac Ext Cet Res Res Distress Signals 21 | . . . . . . . . 5 4 2 4 6 Communications Jammed . | . . . . . . . . . . . . . Distress Signals . | . . . . . . . . . . . . . Times Spotted 213 | . 24 7 . 22 6 . 4 27 29 15 9 70 Peak Tracking Total 10 | . 4 3 . 6 1 . 4 10 6 5 4 9 Tactical Retreats 14 | . 4 . . 1 . . . 1 2 . 1 5 Traps | -11 -10 -10 -7 -5 -5 -5 -5 -4 -4 -4 -3 -2 ------- Run | Yrd Mat Sub Scr Fac Was Fac DSF Fac Ext Cet Res Res Traps Triggered 5 | . . . . 3 . . . . 1 . 1 . Indirectly . | . . . . . . . . . . . . . Trap Hack Attempts . | . . . . . . . . . . . . . Triggered . | . . . . . . . . . . . . . Disarmed . | . . . . . . . . . . . . . Reprogrammed . | . . . . . . . . . . . . . Reused . | . . . . . . . . . . . . . Traps Extracted . | . . . . . . . . . . . . . Installed . | . . . . . . . . . . . . . Triggered . | . . . . . . . . . . . . . Most Traps Carried 1 | . . . 1 1 1 1 1 1 1 1 1 1 Machines | -11 -10 -10 -7 -5 -5 -5 -5 -4 -4 -4 -3 -2 ---------- Run | Yrd Mat Sub Scr Fac Was Fac DSF Fac Ext Cet Res Res Machines Disabled 26 | . 1 . . 13 . . . 4 4 1 . 3 Max in Single Turn 12 | . 1 . . 12 . . . 3 2 1 . 1 Energy Cycler 1 | . . . . . . . . . 1 . . . Machines Repaired . | . . . . . . . . . . . . . Machines Dismantled . | . . . . . . . . . . . . . Machines Sabotaged . | . . . . . . . . . . . . . Overloaded Fab Kills . | . . . . . . . . . . . . . Hacking | -11 -10 -10 -7 -5 -5 -5 -5 -4 -4 -4 -3 -2 --------- Run | Yrd Mat Sub Scr Fac Was Fac DSF Fac Ext Cet Res Res Machines Accessed 30 | . 4 . 4 2 . 1 . 4 7 3 3 2 Terminals 17 | . 4 . . 2 . 1 . . 5 3 1 1 Fabricators 1 | . . . . . . . . 1 . . . . Repair Stations . | . . . . . . . . . . . . . Recycling Units 7 | . . . . . . . . 2 2 . 2 1 Scanalyzers 1 | . . . . . . . . 1 . . . . Garrison Access . | . . . . . . . . . . . . . Total Hacks 59 | . 8 . 17 2 . 1 . 7 8 5 7 4 Successful 35 | . 4 . 17 . . 1 . 4 5 2 1 1 Failed 24 | . 4 . . 2 . . . 3 3 3 6 3 Catastrophic 6 | . . . . . . . . 1 1 2 1 1 Database Lockouts . | . . . . . . . . . . . . . Manual 28 | . 8 . . 2 . . . 3 4 . 7 4 Terminals 27 | . 8 . . 2 . 1 . . 5 5 4 2 Fabricators 1 | . . . . . . . . 1 . . . . Repair Stations . | . . . . . . . . . . . . . Recycling Units 11 | . . . . . . . . 3 3 . 3 2 Scanalyzers 3 | . . . . . . . . 3 . . . . Garrison Access . | . . . . . . . . . . . . . Terminal Hacks 25 | . 2 . 17 . . 1 . . 3 2 . . Record 18 | . . . 16 . . . . . . 2 . . Robot Analysis 2 | . 2 . . . . . . . . . . . Open Door 1 | . . . . . . . . . 1 . . . Open DSF 1 | . . . . . . 1 . . . . . . Branch Access Points 1 | . . . . . . . . . 1 . . . Locate Traps 1 | . . . . . . . . . 1 . . . Proto ID Catalog 1 | . . . 1 . . . . . . . . . Fabricator Hacks 1 | . . . . . . . . 1 . . . . Build 1 | . . . . . . . . 1 . . . . Repair Station Hacks . | . . . . . . . . . . . . . Recycling Unit Hacks . | . . . . . . . . . . . . . Scanalyzer 1 | . . . . . . . . 1 . . . . Retrieve Study 1 | . . . . . . . . 1 . . . . Garrison Access Hacks . | . . . . . . . . . . . . . Unauthorized Hacks 8 | . 2 . . . . . . 2 2 . 1 1 Terminals 4 | . 2 . . . . . . . 1 . . 1 Botnet 3 | . 2 . . . . . . . . . . 1 Operators 1 | . . . . . . . . . 1 . . . Fabricators . | . . . . . . . . . . . . . Repair Stations . | . . . . . . . . . . . . . Recycling Units 4 | . . . . . . . . 2 1 . 1 . Fedlink 4 | . . . . . . . . 2 1 . 1 . Scanalyzers . | . . . . . . . . . . . . . Garrison Access . | . . . . . . . . . . . . . Data Cores Recovered 1 | . . . . . . . . . . . 1 . Used . | . . . . . . . . . . . . . Hacking Detections 17 | . 4 . . 2 . . . 1 3 3 2 2 Full Trace Events 1 | . . . . . . . . . . . 1 . Feedback Events . | . . . . . . . . . . . . . Feedback Blocked . | . . . . . . . . . . . . . Robot Schematics Acquired . | . . . . . . . . . . . . . Robots Built . | . . . . . . . . . . . . . Authchips . | . . . . . . . . . . . . . Time . | . . . . . . . . . . . . . Total Robot Build Rating . | . . . . . . . . . . . . . Part Schematics Acquired . | . . . . . . . . . . . . . Parts Built 2 | . . . . . . . . 2 . . . . Authchips . | . . . . . . . . . . . . . Time 69 | . . . . . . . . 69 . . . . Total Part Build Rating 18 | . . . . . . . . 18 . . . . Part Studies Acquired 1 | . . . . . . . . 1 . . . . Parts Repaired . | . . . . . . . . . . . . . Time . | . . . . . . . . . . . . . Parts Recycled . | . . . . . . . . . . . . . Recycled Matter . | . . . . . . . . . . . . . Retrieved Matter . | . . . . . . . . . . . . . Retrieved Components . | . . . . . . . . . . . . . Parts Scanalyzed . | . . . . . . . . . . . . . Part Schematics Acquired . | . . . . . . . . . . . . . Parts Damaged . | . . . . . . . . . . . . . Bothacking | -11 -10 -10 -7 -5 -5 -5 -5 -4 -4 -4 -3 -2 ------------ Run | Yrd Mat Sub Scr Fac Was Fac DSF Fac Ext Cet Res Res Used RIF Installer . | . . . . . . . . . . . . . Robots Hacked . | . . . . . . . . . . . . . Non-combat . | . . . . . . . . . . . . . Combat . | . . . . . . . . . . . . . Robot Hacks Applied . | . . . . . . . . . . . . . Relay Couplers Released . | . . . . . . . . . . . . . Fabnet Peak Effective % . | . . . . . . . . . . . . . Robots Rewired 8 | . . . . . . . . . 8 . . . Allies Hacked 1 | . . . . . . . . 1 . . . . Hacks Repelled . | . . . . . . . . . . . . . Allies | -11 -10 -10 -7 -5 -5 -5 -5 -4 -4 -4 -3 -2 -------- Run | Yrd Mat Sub Scr Fac Was Fac DSF Fac Ext Cet Res Res Total Allies 26 | . . . . . 18 . . . 8 . . . Largest Group 18 | . . . . . 18 18 18 15 6 . . . Highest-Rated Group 638 | . . . . . 638 638 638 549 257 . . . Highest-Rated Ally 51 | . . . . . 50 50 50 50 51 . . . Total Orders . | . . . . . . . . . . . . . Ally Attacks 195 | . . . . . . . 81 78 36 . . . Total Damage 5294 | . . . . . . . 1688 2669 937 . . . Kills 26 | . . . . . . . 9 13 4 . . . Allies Corrupted 1 | . . . . . . . . . 1 . . . Allies Melted . | . . . . . . . . . . . . . Intel | -11 -10 -10 -7 -5 -5 -5 -5 -4 -4 -4 -3 -2 ------- Run | Yrd Mat Sub Scr Fac Was Fac DSF Fac Ext Cet Res Res Active Infowar (turns) 2383 | 34 787 523 1039 . . . . . . . . . Seismic 2383 | 34 787 523 1039 . . . . . . . . . Robot Analysis Total 2 | . 2 . . . . . . . . . . . Derelict Logs Recovered 1 | . . 1 . . . . . . . . . . Drone Launches . | . . . . . . . . . . . . . Drone Recoveries . | . . . . . . . . . . . . . Exploration | -11 -10 -10 -7 -5 -5 -5 -5 -4 -4 -4 -3 -2 ------------- Run | Yrd Mat Sub Scr Fac Was Fac DSF Fac Ext Cet Res Res Turns Passed 11081 | 106 787 523 1917 683 1435 66 197 559 1108 841 641 2218 Spaces Moved 4894 | 55 373 302 1236 372 372 42 100 219 456 442 259 666 Core 17 | 16 . . . . . . . . . . . 1 Treads 4252 | 39 373 302 1066 . 324 42 100 219 456 442 259 630 Legs 33 | . . . . . . . . . . . . 33 Wheels 527 | . . . 170 307 48 . . . . . . 2 Hover . | . . . . . . . . . . . . . Flight 65 | . . . . 65 . . . . . . . . Fastest Speed 40 | 50 160 160 115 40 115 152 152 160 160 160 160 110 Average Speed 153 | 128 160 160 153 110 149 152 153 160 160 160 160 161 Slowest Speed 1550 | 160 160 160 160 205 160 152 160 160 160 160 160 1550 Overloaded Moves . | . . . . . . . . . . . . . Propulsion Burnouts . | . . . . . . . . . . . . . Robots Hopped . | . . . . . . . . . . . . . Potential Cave-ins 4 | . . . . . . . . . . . 4 . Cave-ins Triggered . | . . . . . . . . . . . . . Exploration Rate (%) 45 | 5 66 25 87 9 97 2 94 8 76 95 11 16 Regions Visited 12 Branch Regions 4 Pre-discovered Areas 1 | . . . . . . . . 1 . . . . Known Exits Taken 2 | . . . . . . 1 . . 1 . . . Unknown Exits Taken 7 | 1 1 1 1 . . . . 1 . 1 1 . Scrap Searched 4 | . . . 4 . . . . . . . . . Spaces Dug 7 | . . . . . . . . 3 . . 4 . Terrain Destroyed 287 | . . 20 . 58 . . . 51 31 12 7 108 Melee . | . . . . . . . . . . . . . Projectile 92 | . . . . . . . . 11 22 11 6 42 AOE 184 | . . 20 . 58 . . . 40 9 . . 57 Terrain Rammed . | . . . . . . . . . . . . . Walls Destroyed . | . . . . . . . . . . . . . Machines Disabled . | . . . . . . . . . . . . . Actions | -11 -10 -10 -7 -5 -5 -5 -5 -4 -4 -4 -3 -2 --------- Run | Yrd Mat Sub Scr Fac Was Fac DSF Fac Ext Cet Res Res Total 7600 | 79 471 327 1254 520 1166 44 145 383 747 517 437 1510 Wait 1879 | . 15 5 1 20 730 3 20 137 199 13 141 595 Move 4884 | 55 372 301 1235 372 371 41 99 218 455 441 258 666 Hop . | . . . . . . . . . . . . . Pick Up 116 | 11 16 3 5 19 13 . 5 2 2 11 2 27 Fast Attach 42 | 1 . . 3 14 4 . 5 1 4 2 3 5 Attach 88 | 6 1 1 . 18 9 . . 2 . 9 1 41 Detach 15 | . . . . 7 1 . . . . . . 7 Swap 42 | . 3 1 1 5 2 . 2 1 5 7 3 12 Drop 84 | . 7 5 9 13 4 . 13 1 6 9 4 13 Fire 408 | 6 55 11 . 52 32 . 1 18 41 25 25 142 Melee . | . . . . . . . . . . . . . Ram . | . . . . . . . . . . . . . Kick . | . . . . . . . . . . . . . Crush 6 | . 2 . . . . . . 2 . . . 2 Escape Stasis . | . . . . . . . . . . . . . Rewire 36 | . . . . . . . . 1 35 . . . Trap . | . . . . . . . . . . . . . Miscellaneous . | . . . . . . . . . . . . . Route ------- -11/Scrapyard -10/Materials (discovered 4 exits: [*Mat] / [*Min x2] / [*Sub]) -10/Subcaves (discovered 2 exits: [*Mat] / *Scr) -7/Scraptown (discovered 2 exits: *Fac x2) -5/Factory -5/Waste -5/Factory -5/DSF -4/Factory (discovered 3 exits: *Res / [*Upp] / *Ext) -4/Extension (discovered 3 exits: *Res x2 / *Cet) -4/Cetus (discovered 3 exits: *Res x2 / [*Arc]) -3/Research -2/Research History --------- Turn | Location | Event 6 | -11/Scrapyard | Discovered new exit (range 15) 107 | -11/Scrapyard | Entered Materials 107 | -10/Materials | Discovered new exit (range 14) 192 | -10/Materials | Discovered new exit (range 9) 311 | -10/Materials | Discovered new exit (range 11) 318 | -10/Materials | Build established: Mutant 402 | -10/Materials | Discovered new exit (range 16) 894 | -10/Materials | Entered Subcaves 895 | -10/Subcaves | Approached by a straggling Scientist 898 | -10/Subcaves | Learned Materials non-interactive machine intel 934 | -10/Subcaves | A swath of the cavern ceiling suddenly collapsed 934 | -10/Subcaves | A Subdweller sparked back to life 934 | -10/Subcaves | A Subdweller sparked back to life 982 | -10/Subcaves | Found Prototype Flight Unit 994 | -10/Subcaves | Shifting Twisted Machinery released Sub. Laser 996 | -10/Subcaves | Shifting Twisted Machinery released Sub. Laser 1199 | -10/Subcaves | Shifting Twisted Machinery released Sub. Shrapnel Launcher 1199 | -10/Subcaves | Shifting Twisted Machinery released Flamer 1256 | -10/Subcaves | Discovered new exit (range 7) 1412 | -10/Subcaves | Scientist uncovered a shortcut to Scraptown 1417 | -10/Subcaves | Entered Scraptown 1417 | -7/Scraptown | System corruption cleaned by C-Scrubber 1697 | -7/Scraptown | Discovered new exit (range 11) 1800 | -7/Scraptown | Visited Spacefarers 1856 | -7/Scraptown | Visited Shadow of the Wyrm 1867 | -7/Scraptown | Visited Cyclists 1923 | -7/Scraptown | Visited Awakened 2171 | -7/Scraptown | Visited Artisan Demo Area 2262 | -7/Scraptown | Visited Fellowship of the Rings 2296 | -7/Scraptown | Visited Comm Corps 2387 | -7/Scraptown | Visited UFD Registry 2387 | -7/Scraptown | Registered with UFD as "Gaussrider" 2421 | -7/Scraptown | Visited Scrapoid Pod Storage 2443 | -7/Scraptown | Visited A0-MCA Data Center 2453 | -7/Scraptown | Given an A- rating by A0-MCA 2456 | -7/Scraptown | Found A0-MCA's Component Scanner 2457 | -7/Scraptown | Identified Flightbrick 2493 | -7/Scraptown | Visited Science Guys 2734 | -7/Scraptown | Visited Derelict Rescue Squad 2803 | -7/Scraptown | Visited Abandonware Association 2827 | -7/Scraptown | Learned abandonware demo "SHUTEYE.EXE" 2890 | -7/Scraptown | Visited Observation Area 2954 | -7/Scraptown | Visited LU-1G1's Boring Crew 3021 | -7/Scraptown | Visited Scrapoid Research Area 3269 | -7/Scraptown | Met Optimus 3269 | -7/Scraptown | Accepted into 0bPrime 3330 | -7/Scraptown | Discovered new exit (range 3) 3334 | -7/Scraptown | Entered Factory 3334 | -5/Factory | Evolved 10 slots: Power x1, Propulsion x2, Utility x6, Weapon x1 3336 | -5/Factory | Attached Flightbrick, gained temporary slots: Utility x3 3828 | -5/Factory | Spotted B-75 Beast 3850 | -5/Factory | Destroyed B-75 Beast 4017 | -5/Factory | Sucked down chute 4017 | -5/Factory | Entered Waste 4145 | -5/Waste | Spotted C-40 Crusher 4153 | -5/Waste | Destroyed C-40 Crusher 4178 | -5/Waste | Spotted C-40 Crusher 4197 | -5/Waste | Crushed by Compactor (1 part destroyed, 2 dropped) 4200 | -5/Waste | Crushed by Compactor (1 part destroyed, 2 dropped) 4203 | -5/Waste | Crushed by Compactor (1 part destroyed, 1 dropped) 4205 | -5/Waste | Destroyed C-40 Crusher 4234 | -5/Waste | Lost 4 parts (2n2u) 4290 | -5/Waste | Spotted C-40 Crusher 4303 | -5/Waste | Destroyed C-40 Crusher 4351 | -5/Waste | Spotted C-40 Crusher 4367 | -5/Waste | Destroyed C-40 Crusher 4442 | -5/Waste | Spotted C-40 Crusher 4454 | -5/Waste | Destroyed C-40 Crusher 4490 | -5/Waste | Spotted C-40 Crusher 4510 | -5/Waste | Build established: Tank 4533 | -5/Waste | Crushed by Compactor (1 part destroyed, 1 dropped) 4534 | -5/Waste | Destroyed C-40 Crusher 5116 | -5/Waste | Warlord forces began an assault 5160 | -5/Waste | Discovered new exit (range 12) 5186 | -5/Waste | Found Adv. Force Booster 5452 | -5/Waste | Entered Factory 5452 | -5/Factory | Accompanied by 18 allies 5512 | -5/Factory | Identified exit to DSF 5518 | -5/Factory | Entered DSF 5518 | -5/DSF | Accompanied by 18 allies 5538 | -5/DSF | Additional patrols routed to DSF 5655 | -5/DSF | Discovered new exit (range 16) 5673 | -5/DSF | Sterilization system engaged 5693 | -5/DSF | Ambient heat levels rising (+10) 5708 | -5/DSF | Ambient heat levels rising (+10) 5715 | -5/DSF | Entered Factory 5715 | -4/Factory | Accompanied by 15 allies 5715 | -4/Factory | Evolved 2 slots: Utility x1, Weapon x1 5736 | -4/Factory | Loaded intel: 8 recycling unit locations 5758 | -4/Factory | Discovered new exit (range 10) 5913 | -4/Factory | Fabricated Enh. Quantum Rifle (x2) 6019 | -4/Factory | Spotted B-86 Titan 6028 | -4/Factory | Destroyed B-86 Titan 6091 | -4/Factory | Discovered new exit (range 14) 6170 | -4/Factory | Lost 8 allies 6179 | -4/Factory | Discovered new exit (range 15) 6183 | -4/Factory | Destroyed 7 combat bots 6215 | -4/Factory | First assault squad dispatched 6237 | -4/Factory | Learned location of Protoforge (-3) 6274 | -4/Factory | Entered Extension 6274 | -4/Extension | Accompanied by 2 allies 6280 | -4/Extension | Lost 3 allies 6305 | -4/Extension | Energy Cycler disabled 6309 | -4/Extension | Rescued a captive Derelict 6310 | -4/Extension | Rescued a captive Derelict 6319 | -4/Extension | Rescued a captive Derelict 6323 | -4/Extension | Rescued a captive Derelict 6727 | -4/Extension | Lost 3 allies 6747 | -4/Extension | Identified exit to Cetus 6757 | -4/Extension | Spotted B-86 Titan 6783 | -4/Extension | Destroyed B-86 Titan 6816 | -4/Extension | Discovered new exit (range 15) 6861 | -4/Extension | Build established: Scavenger-Tank 6886 | -4/Extension | Loaded intel: 2 recycling unit locations 7196 | -4/Extension | Lost 5 allies 7301 | -4/Extension | Disrupted transfer network 7311 | -4/Extension | Discovered new exit (range 12) 7371 | -4/Extension | Destroyed 9 combat bots 7382 | -4/Extension | Entered Cetus 7401 | -4/Cetus | Spotted Cetus Guard 7408 | -4/Cetus | Spotted Cetus Guard 7411 | -4/Cetus | Spotted Cetus Guard 7413 | -4/Cetus | Destroyed Cetus Guard 7420 | -4/Cetus | Destroyed Cetus Guard 7420 | -4/Cetus | Spotted Cetus Guard 7423 | -4/Cetus | Destroyed Cetus Guard 7432 | -4/Cetus | Destroyed Cetus Guard 7768 | -4/Cetus | Discovered new exit (range 15) 7796 | -4/Cetus | Spotted Cetus Guard 7796 | -4/Cetus | Spotted Cetus Guard 7797 | -4/Cetus | Spotted Cetus Guard 7799 | -4/Cetus | Spotted Cetus Guard 7815 | -4/Cetus | Destroyed Cetus Guard 7827 | -4/Cetus | Destroyed Cetus Guard 7842 | -4/Cetus | Destroyed Cetus Guard 7849 | -4/Cetus | Destroyed Cetus Guard 7861 | -4/Cetus | Discovered new exit (range 15) 7879 | -4/Cetus | Lost 6 parts (1p1u4w) 7882 | -4/Cetus | Met Revision 17 8116 | -4/Cetus | Discovered new exit (range 15) 8132 | -4/Cetus | Security sweep announced 8223 | -4/Cetus | Entered Research 8223 | -3/Research | Evolved 2 slots: Propulsion x2 8370 | -3/Research | Loaded intel: 5 recycling unit locations 8406 | -3/Research | Garrison activated, responded to threat 8423 | -3/Research | Revision forces began assault on 0b10 8458 | -3/Research | Met up with Revision 17++ 8598 | -3/Research | Discovered new exit (range 8) 8864 | -3/Research | Entered another Research area 8864 | -2/Research | Evolved 2 slots: Utility x2 10512 | -2/Research | Build established: Scavenger-Gunner 10543 | -2/Research | System corruption reached 10% 10610 | -2/Research | Destroyed 9 combat bots 10757 | -2/Research | Lost 4 parts (3u1w) 10864 | -2/Research | First assault squad dispatched 10892 | -2/Research | Destroyed 14 combat bots 10929 | -2/Research | Lost 20 parts (2p4n4u10w) 10955 | -2/Research | Core integrity fell below 50% 11033 | -2/Research | Lost 6 parts (1n1u4w) 11040 | -2/Research | Core integrity fell below 20% 11063 | -2/Research | System corruption reached 30% 11082 | -2/Research | Destroyed by P-80 Master with Gamma Rifle Last Messages --------------- 11071_ K-01 Serf collects debris. 11075_ U-05 Engineer builds a Wall. 11075_ K-01 Serf collects debris. 11075_ K-01 Serf destroyed. 11076_ System corrupted: Heat flow error (+107). 11076_ U-05 Engineer lays Concrete. 11076_ Biometal Leg destroyed. 11077_ U-05 Engineer builds a Wall. 11078_ K-01 Serf collects debris. 11079_ Wheel destroyed. 11079_ U-05 Engineer lays Concrete. 11080_ K-01 Serf destroyed. 11080_ U-05 Engineer lays Concrete. 11080_ Destroyed Hvy. Laser. 11081_ Sub. Shrapnel Launcher destroyed. 11081_ U-05 Engineer builds a Wall. 11081_ R-10 Processor collects Imp. Terrain Scanner. 11082_ U-05 Engineer builds a Wall. 11082_ W-44 Eye sends out distress signal. Map ----- +----------------------------------------------------+ | ?????????????????????????????????????????????? | | ?????????????????????????????????????????????? | | ?????????????????????????????????????????????? | | ?????????????????????????????????????????????? | | ?????????????????????????????????????????????? | | ?????????????????????????????????????????????? | | ?????????????????????????????????????????????? | | ?????????????????????????????????????????????? | | ?????????????????????????????????????????????? | | ???????????????????????????????? ??????????? | | ???????????????????????????????? ??????????? | | ????????????????????????????+??? ??????????? | | ??????????????????????????? #??? ???????????? | | ??????????????????????????? #??? ???????????? | | ??????????????????????????? #??? #???????????? | | ??????????????????????????? #??? #???????????? | | ???????????????????????????;#### #???????????? | | ?????????? ??????????###?# # #???????????? | | ?????????? #????????# ## # #???????????? | | ???????????= # #?????? #; #???????????? | | ???????????### # #########= #???????????? | | ???????????# !w #####/ u #???????????? | | ???????????# R ![ *##== #???????????? | | ???????????# % =!=%u*%= #???????????? | | ???????????# = =!g=#[ #???????????? | | ???????????# #!%*@%# " #???????????? | | ???????????#### ### ##* !#; ; #???????????? | | ???????????????????#### ==## # #???????????? | | ???????????????????##*;% ##?## #???????????? | | ?????????????##########p #### #???????????? | | ?????????????#]!!!= %!!![%!== # ???????????? | | ?????????????#[!*=###;;;;;;#### ???????????? | | ?????????????#!=*=#[====g [%% # ???????????? | | ?????????????#%[=%# [ * # ??????????? | | ?????????????#!##[# # "??????????? | | ?????????????#!# ## # "??????????? | | #######??????# ##?# [%[ [ # "??????????? | | #??????# #??# gAg= # ?????????? | | #??????# #??# A = # ????????? | | ######## #######; ###;""# ! ????????? | | !* + ; # ##"#????????? | | * ### ## #? #??#????????? | | #?# #?##? #???????????? | | #######?# #?????????????????? | | ????????#! = #?????????????????? | | #?#####?# #?????????????????? | | ### ### """ #?????????????????? | | " """ #?????????????????? | | ### ### """ #?????????????????? | | #?#####?# """ #?????????????????? | +----------------------------------------------------+ Best States ------------- Heat Dissipation 122 Coolant Potential 240 Energy Generation 41 Energy Capacity 530 Matter Stores 300 Matter Capacity 300 Sight Range 16 Terrain Scan Density 10 Armor Coverage 1800 Resistance: TH 30 Phase Shifting 15 Evasion (%) 55 Targeting Accuracy 6 Target Analysis 12 Recoil Reduction 6 Item Schematics ----------------- None Robot Schematics ------------------ None Fabricated ------------ Enh. Quantum Rifle | x2 | -4/Factory | Preloaded Repaired ---------- Nothing Studied --------- Hyp. Coil Gun | -4/Factory | Hacked Alien Tech Used ----------------- None Achievements -------------- Deadly Precision Hot Goods Left-hand Path Tank Life Challenges ------------ None Game ------ Seed PhasingSuperquantumMallet Manual? 0 Play Time 01:23:16 Cumulative 125.7 hours Start 2025.11.25 @ 16:03:18 End 2025.11.28 @ 16:42:18 Sessions 5 Manual Loads 0 Difficulty Rogue Special Mode None Game No. 146 Rogue 146 Adventurer 0 Explorer 0 Win Type - Total 2 Types 2/0/0/0/0/0/0/0/0/0 Lore% 72 Gallery% 62 Achievement% 43 Wizard Run 0 Options --------- Layout 1 ASCII 0 Keyboard 0 Movement Mouse Keybinds 0 Fullscreen 1 Font 32/SmallcapsGlow Map View 50x35 Zoom Use 0% Tactical HUD 1 Map Filters NONE Filters NONE Steam 1 RUN: 41b5667b-ac7c-4be5-9815-b04f1f00a420